[Event "Titled Tuesday Blitz June 14 Late 2022"]
[White "Uskov, Artem"]
[Black "Mickiewicz, Piotr"]
[WhiteFideId "34254854"]
[BlackFideId "1114891"]
[WhiteElo "2335"]
[BlackElo "2209"]
[Result "1/2-1/2"]
[Round "03"]
[TimeControl "180+1"]
[Date "2022.06.15"]
[WhiteClock "0:00:10"]
[BlackClock "0:00:08"]

1. e4 {[%clk 0:02:44]}  c5 {[%clk 0:02:58]} 2. Nf3 {[%clk 0:02:43]}  d6 {[%clk 0:02:58]} 3. d4 {[%clk 0:02:42]}  cxd4 {[%clk 0:02:59]} 4. Nxd4 {[%clk 0:02:43]}  Nf6 {[%clk 0:02:59]} 5. f3 {[%clk 0:02:43]}  e5 {[%clk 0:02:56]} 6. Nb3 {[%clk 0:02:42]}  d5 {[%clk 0:02:56]} 7. Bg5 {[%clk 0:02:35]}  d4 {[%clk 0:02:54]} 8. c3 {[%clk 0:02:33]}  Nc6 {[%clk 0:02:51]} 9. Bb5 {[%clk 0:02:31]}  Be6 {[%clk 0:02:42]} 10. cxd4 {[%clk 0:02:25]}  Bxb3 {[%clk 0:02:25]} 11. axb3 {[%clk 0:02:23]}  Bb4+ {[%clk 0:02:18]} 12. Kf2 {[%clk 0:02:02]}  Qxd4+ {[%clk 0:02:17]} 13. Qxd4 {[%clk 0:02:00]}  exd4 {[%clk 0:02:18]} 14. Bxf6 {[%clk 0:01:59]}  gxf6 {[%clk 0:02:16]} 15. Rd1 {[%clk 0:02:00]}  Ke7 {[%clk 0:02:00]} 16. Ra4 {[%clk 0:01:57]}  a5 {[%clk 0:01:59]} 17. Na3 {[%clk 0:01:55]}  Rhd8 {[%clk 0:01:39]} 18. Nc2 {[%clk 0:01:53]}  Bc5 {[%clk 0:01:27]} 19. Ke2 {[%clk 0:01:52]}  Nb4 {[%clk 0:01:22]} 20. Ne1 {[%clk 0:01:52]}  b6 {[%clk 0:01:20]} 21. Raa1 {[%clk 0:01:49]}  h5 {[%clk 0:01:17]} 22. Rac1 {[%clk 0:01:48]}  f5 {[%clk 0:01:14]} 23. exf5 {[%clk 0:01:34]}  Kf6 {[%clk 0:01:13]} 24. Bd3 {[%clk 0:01:35]}  Nxd3 {[%clk 0:01:02]} 25. Nxd3 {[%clk 0:01:35]}  Rac8 {[%clk 0:01:00]} 26. Nf4 {[%clk 0:01:28]}  Kg5 {[%clk 0:00:57]} 27. g3 {[%clk 0:01:27]}  h4 {[%clk 0:00:56]} 28. Nh3+ {[%clk 0:01:23]}  Kxf5 {[%clk 0:00:56]} 29. g4+ {[%clk 0:01:24]}  Kf6 {[%clk 0:00:54]} 30. Nf2 {[%clk 0:01:20]}  Kg5 {[%clk 0:00:35]} 31. Nh3+ {[%clk 0:01:15]}  Kf6 {[%clk 0:00:35]} 32. Nf2 {[%clk 0:01:13]}  Kg5 {[%clk 0:00:34]} 33. Nd3 {[%clk 0:01:08]}  Re8+ {[%clk 0:00:33]} 34. Kf2 {[%clk 0:01:09]}  Re3 {[%clk 0:00:33]} 35. Rc2 {[%clk 0:01:05]}  f5 {[%clk 0:00:28]} 36. h3 {[%clk 0:01:04]}  fxg4 {[%clk 0:00:27]} 37. hxg4 {[%clk 0:01:05]}  Rf8 {[%clk 0:00:26]} 38. f4+ {[%clk 0:01:00]}  Kxg4 {[%clk 0:00:25]} 39. Rg1+ {[%clk 0:01:00]}  Rg3 {[%clk 0:00:22]} 40. Rxg3+ {[%clk 0:00:57]}  hxg3+ {[%clk 0:00:22]} 41. Kg2 {[%clk 0:00:57]}  Rxf4 {[%clk 0:00:21]} 42. Re2 {[%clk 0:00:42]}  Kf5 {[%clk 0:00:07]} 43. Re5+ {[%clk 0:00:37]}  Kf6 {[%clk 0:00:07]} 44. Rxc5 {[%clk 0:00:38]}  bxc5 {[%clk 0:00:04]} 45. Nxf4 {[%clk 0:00:38]}  Ke5 {[%clk 0:00:04]} 46. Ne2 {[%clk 0:00:06]}  Ke4 {[%clk 0:00:05]} 47. Nxg3+ {[%clk 0:00:04]}  Ke3 {[%clk 0:00:05]} 48. Kf1 {[%clk 0:00:05]}  Kd2 {[%clk 0:00:04]} 49. Ne4+ {[%clk 0:00:05]}  Kc2 {[%clk 0:00:05]} 50. Nxc5 {[%clk 0:00:06]}  Kxb2 {[%clk 0:00:05]} 51. Ke2 {[%clk 0:00:06]}  Kc3 {[%clk 0:00:05]} 52. Kd1 {[%clk 0:00:06]}  d3 {[%clk 0:00:05]} 53. Kc1 {[%clk 0:00:07]}  Kb4 {[%clk 0:00:05]} 54. Nxd3+ {[%clk 0:00:06]}  Kxb3 {[%clk 0:00:06]} 55. Nc5+ {[%clk 0:00:07]}  Kc3 {[%clk 0:00:07]} 56. Ne4+ {[%clk 0:00:08]}  Kd4 {[%clk 0:00:06]} 57. Nd2 {[%clk 0:00:08]}  a4 {[%clk 0:00:07]} 58. Nb1 {[%clk 0:00:09]}  a3 {[%clk 0:00:08]} 59. Nxa3 {[%clk 0:00:10]} 1/2-1/2


[Site "https://www.chess.com"]

[Event "Titled Tuesday Blitz June 14 Late 2022"]
[White "Wang, Isaac"]
[Black "Fedoseev, Vladimir"]
[WhiteFideId "30977185"]
[BlackFideId "24130737"]
[WhiteElo "2235"]
[BlackElo "2726"]
[Result "0-1"]
[Round "03"]
[TimeControl "180+1"]
[Date "2022.06.14"]
[WhiteClock "0:00:19"]
[BlackClock "0:01:36"]

1. d4 {[%clk 0:03:00]}  Nf6 {[%clk 0:02:56]} 2. c4 {[%clk 0:02:59]}  e6 {[%clk 0:02:57]} 3. Nc3 {[%clk 0:03:00]}  Bb4 {[%clk 0:02:56]} 4. f3 {[%clk 0:03:00]}  d5 {[%clk 0:02:54]} 5. a3 {[%clk 0:03:00]}  Bxc3+ {[%clk 0:02:54]} 6. bxc3 {[%clk 0:03:01]}  Nc6 {[%clk 0:02:52]} 7. e3 {[%clk 0:02:59]}  O-O {[%clk 0:02:52]} 8. cxd5 {[%clk 0:02:57]}  exd5 {[%clk 0:02:51]} 9. Bd3 {[%clk 0:02:56]}  Na5 {[%clk 0:02:51]} 10. Ne2 {[%clk 0:02:55]}  Re8 {[%clk 0:02:50]} 11. O-O {[%clk 0:02:55]}  c5 {[%clk 0:02:49]} 12. Ng3 {[%clk 0:02:54]}  cxd4 {[%clk 0:02:46]} 13. cxd4 {[%clk 0:02:53]}  Be6 {[%clk 0:02:42]} 14. Bd2 {[%clk 0:02:45]}  Rc8 {[%clk 0:02:41]} 15. Qa4 {[%clk 0:02:41]}  Nc4 {[%clk 0:02:39]} 16. Bxc4 {[%clk 0:02:36]}  dxc4 {[%clk 0:02:40]} 17. Rac1 {[%clk 0:02:30]}  a6 {[%clk 0:02:39]} 18. Qa5 {[%clk 0:02:12]}  Qd7 {[%clk 0:02:30]} 19. Bc3 {[%clk 0:02:03]}  Nd5 {[%clk 0:02:09]} 20. e4 {[%clk 0:01:47]}  b6 {[%clk 0:02:09]} 21. Qxa6 {[%clk 0:01:33]}  Nxc3 {[%clk 0:02:08]} 22. d5 {[%clk 0:01:21]}  Nxd5 {[%clk 0:02:04]} 23. exd5 {[%clk 0:01:20]}  Qxd5 {[%clk 0:02:05]} 24. Qxb6 {[%clk 0:01:20]}  c3 {[%clk 0:02:05]} 25. Ne4 {[%clk 0:01:19]}  c2 {[%clk 0:02:04]} 26. Qf2 {[%clk 0:01:05]}  f5 {[%clk 0:01:53]} 27. Ng5 {[%clk 0:00:57]}  Qd3 {[%clk 0:01:52]} 28. Nh3 {[%clk 0:00:40]}  Bb3 {[%clk 0:01:49]} 29. Nf4 {[%clk 0:00:39]}  Qc4 {[%clk 0:01:49]} 30. Qg3 {[%clk 0:00:34]}  Red8 {[%clk 0:01:47]} 31. Qg5 {[%clk 0:00:28]}  Rd1 {[%clk 0:01:37]} 32. Nh5 {[%clk 0:00:19]}  Qxf1# {[%clk 0:01:36]} 0-1


[Site "https://www.chess.com"]

[Event "Titled Tuesday Blitz June 14 Late 2022"]
[White "Acosta, Pablo Ismael"]
[Black "Oparin, Grigoriy"]
[WhiteFideId "124311"]
[BlackFideId "24125890"]
[WhiteElo "2313"]
[BlackElo "2639"]
[Result "0-1"]
[Round "04"]
[TimeControl "180+1"]
[Date "2022.06.14"]
[WhiteClock "0:00:13"]
[BlackClock "0:00:15"]

1. c4 {[%clk 0:03:00]}  g6 {[%clk 0:02:58]} 2. g3 {[%clk 0:03:01]}  Bg7 {[%clk 0:02:58]} 3. Bg2 {[%clk 0:03:02]}  c5 {[%clk 0:02:59]} 4. Nc3 {[%clk 0:03:01]}  Nc6 {[%clk 0:02:59]} 5. e3 {[%clk 0:02:59]}  d6 {[%clk 0:02:53]} 6. Nge2 {[%clk 0:02:58]}  h5 {[%clk 0:02:50]} 7. h4 {[%clk 0:02:56]}  Bg4 {[%clk 0:02:50]} 8. Qa4 {[%clk 0:02:51]}  Qd7 {[%clk 0:02:44]} 9. Nd5 {[%clk 0:02:28]}  Rc8 {[%clk 0:02:04]} 10. Nec3 {[%clk 0:02:15]}  Ne5 {[%clk 0:01:57]} 11. Qxd7+ {[%clk 0:02:06]}  Kxd7 {[%clk 0:01:58]} 12. b3 {[%clk 0:01:59]}  Nf3+ {[%clk 0:01:57]} 13. Kf1 {[%clk 0:01:57]}  e6 {[%clk 0:01:47]} 14. Nf4 {[%clk 0:01:56]}  Ne7 {[%clk 0:01:47]} 15. Bh3 {[%clk 0:01:46]}  b5 {[%clk 0:01:22]} 16. cxb5 {[%clk 0:01:36]}  d5 {[%clk 0:01:23]} 17. Rb1 {[%clk 0:01:13]}  d4 {[%clk 0:01:19]} 18. Na4 {[%clk 0:01:03]}  c4 {[%clk 0:01:14]} 19. b6 {[%clk 0:00:46]}  c3 {[%clk 0:01:14]} 20. bxa7 {[%clk 0:00:30]}  c2 {[%clk 0:00:52]} 21. Rb2 {[%clk 0:00:22]}  Rc6 {[%clk 0:00:33]} 22. Bxg4 {[%clk 0:00:19]}  hxg4 {[%clk 0:00:33]} 23. Nd3 {[%clk 0:00:08]}  dxe3 {[%clk 0:00:31]} 24. dxe3 {[%clk 0:00:09]}  Bxb2 {[%clk 0:00:31]} 25. Bxb2 {[%clk 0:00:09]}  Ra8 {[%clk 0:00:32]} 26. Ke2 {[%clk 0:00:09]}  Rxa7 {[%clk 0:00:31]} 27. Rc1 {[%clk 0:00:10]}  Nd5 {[%clk 0:00:28]} 28. Nac5+ {[%clk 0:00:09]}  Kd6 {[%clk 0:00:28]} 29. a4 {[%clk 0:00:08]}  Rxc5 {[%clk 0:00:16]} 30. Ba3 {[%clk 0:00:09]}  Nc3+ {[%clk 0:00:16]} 31. Kf1 {[%clk 0:00:09]}  Ne4 {[%clk 0:00:07]} 32. Rxc2 {[%clk 0:00:07]}  Rc7 {[%clk 0:00:07]} 33. Nxc5 {[%clk 0:00:07]}  Nxc5 {[%clk 0:00:07]} 34. a5 {[%clk 0:00:06]}  Kd5 {[%clk 0:00:04]} 35. b4 {[%clk 0:00:07]}  Na6 {[%clk 0:00:04]} 36. Rb2 {[%clk 0:00:07]}  Rb7 {[%clk 0:00:04]} 37. b5 {[%clk 0:00:06]}  Nc7 {[%clk 0:00:03]} 38. a6 {[%clk 0:00:06]}  Rxb5 {[%clk 0:00:02]} 39. a7 {[%clk 0:00:06]}  Rxb2 {[%clk 0:00:02]} 40. Bxb2 {[%clk 0:00:06]}  Na8 {[%clk 0:00:02]} 41. Bf6 {[%clk 0:00:06]}  Kc6 {[%clk 0:00:03]} 42. Ke2 {[%clk 0:00:07]}  Kb7 {[%clk 0:00:04]} 43. Kd3 {[%clk 0:00:07]}  Kxa7 {[%clk 0:00:04]} 44. Ke4 {[%clk 0:00:08]}  Kb7 {[%clk 0:00:05]} 45. Kf4 {[%clk 0:00:08]}  Kc6 {[%clk 0:00:04]} 46. Kxg4 {[%clk 0:00:09]}  Nd2 {[%clk 0:00:05]} 47. h5 {[%clk 0:00:08]}  gxh5+ {[%clk 0:00:05]} 48. Kxh5 {[%clk 0:00:09]}  Kd7 {[%clk 0:00:05]} 49. f4 {[%clk 0:00:08]}  Ne4 {[%clk 0:00:05]} 50. Bh4 {[%clk 0:00:08]}  Nc7 {[%clk 0:00:05]} 51. Kh6 {[%clk 0:00:08]}  Nd5 {[%clk 0:00:06]} 52. Kg7 {[%clk 0:00:08]}  Ke8 {[%clk 0:00:06]} 53. g4 {[%clk 0:00:08]}  Nxe3 {[%clk 0:00:07]} 54. g5 {[%clk 0:00:08]}  Nf5+ {[%clk 0:00:07]} 55. Kg8 {[%clk 0:00:06]}  Nxh4 {[%clk 0:00:08]} 56. Kh7 {[%clk 0:00:05]}  Ng6 {[%clk 0:00:08]} 57. Kg7 {[%clk 0:00:05]}  Nxf4 {[%clk 0:00:08]} 58. Kh6 {[%clk 0:00:06]}  Ng6 {[%clk 0:00:08]} 59. Kg7 {[%clk 0:00:07]}  Ke7 {[%clk 0:00:09]} 60. Kh6 {[%clk 0:00:08]}  e5 {[%clk 0:00:10]} 61. Kg7 {[%clk 0:00:09]}  Ng3 {[%clk 0:00:10]} 62. Kh6 {[%clk 0:00:10]}  e4 {[%clk 0:00:11]} 63. Kg7 {[%clk 0:00:11]}  e3 {[%clk 0:00:12]} 64. Kg8 {[%clk 0:00:11]}  e2 {[%clk 0:00:13]} 65. Kh7 {[%clk 0:00:12]}  e1=Q {[%clk 0:00:14]} 66. Kg8 {[%clk 0:00:13]}  Qe5 {[%clk 0:00:14]} 67. Kh7 {[%clk 0:00:13]}  Qh8# {[%clk 0:00:15]} 0-1


[Site "https://www.chess.com"]

[Event "Titled Tuesday Blitz June 14 Late 2022"]
[White "Al Hosani, Omran"]
[Black "Buscar, Michael"]
[WhiteFideId "9308733"]
[BlackFideId "2603616"]
[WhiteElo "2236"]
[BlackElo "2010"]
[Result "0-1"]
[Round "04"]
[TimeControl "180+1"]
[Date "2022.06.15"]
[WhiteClock "0:00:01"]
[BlackClock "0:00:20"]

1. e4 {[%clk 0:03:00]}  c5 {[%clk 0:02:59]} 2. Nf3 {[%clk 0:02:58]}  Nc6 {[%clk 0:02:58]} 3. d4 {[%clk 0:02:56]}  cxd4 {[%clk 0:02:59]} 4. Nxd4 {[%clk 0:02:55]}  Nf6 {[%clk 0:03:00]} 5. Nc3 {[%clk 0:02:55]}  e5 {[%clk 0:03:00]} 6. Ndb5 {[%clk 0:02:54]}  h6 {[%clk 0:03:00]} 7. Nd5 {[%clk 0:02:49]}  Nxd5 {[%clk 0:02:59]} 8. exd5 {[%clk 0:02:49]}  a6 {[%clk 0:03:00]} 9. Nc3 {[%clk 0:02:42]}  Nb8 {[%clk 0:03:00]} 10. a4 {[%clk 0:02:40]}  d6 {[%clk 0:03:00]} 11. Be3 {[%clk 0:02:37]}  Be7 {[%clk 0:02:57]} 12. Be2 {[%clk 0:02:29]}  O-O {[%clk 0:02:56]} 13. O-O {[%clk 0:02:27]}  f5 {[%clk 0:02:56]} 14. f4 {[%clk 0:02:28]}  Nd7 {[%clk 0:02:56]} 15. Kh1 {[%clk 0:02:27]}  g5 {[%clk 0:02:39]} 16. fxe5 {[%clk 0:02:19]}  Nxe5 {[%clk 0:02:39]} 17. Bd4 {[%clk 0:02:20]}  Bf6 {[%clk 0:02:32]} 18. a5 {[%clk 0:02:19]}  Qe8 {[%clk 0:02:30]} 19. Bh5 {[%clk 0:02:16]}  Qe7 {[%clk 0:02:28]} 20. Na4 {[%clk 0:02:12]}  Bd7 {[%clk 0:02:09]} 21. Nb6 {[%clk 0:02:11]}  Rad8 {[%clk 0:02:02]} 22. Be2 {[%clk 0:01:49]}  Ng6 {[%clk 0:01:50]} 23. Nxd7 {[%clk 0:01:33]}  Qxd7 {[%clk 0:01:49]} 24. Ra3 {[%clk 0:01:20]}  Nf4 {[%clk 0:01:43]} 25. Bc4 {[%clk 0:00:52]}  Rde8 {[%clk 0:01:35]} 26. Rb3 {[%clk 0:00:43]}  Re4 {[%clk 0:01:28]} 27. Bxf6 {[%clk 0:00:33]}  Rxf6 {[%clk 0:01:16]} 28. Rc3 {[%clk 0:00:23]}  Qe7 {[%clk 0:01:08]} 29. Bd3 {[%clk 0:00:14]}  Re3 {[%clk 0:00:59]} 30. Rc8+ {[%clk 0:00:13]}  Kg7 {[%clk 0:00:59]} 31. Qd2 {[%clk 0:00:13]}  Rf7 {[%clk 0:00:43]} 32. Qc3+ {[%clk 0:00:13]}  Qe5 {[%clk 0:00:39]} 33. Qxe5+ {[%clk 0:00:12]}  dxe5 {[%clk 0:00:40]} 34. Bc4 {[%clk 0:00:12]}  Rd7 {[%clk 0:00:34]} 35. Rc5 {[%clk 0:00:11]}  Kf6 {[%clk 0:00:32]} 36. g3 {[%clk 0:00:11]}  Ng6 {[%clk 0:00:31]} 37. Rc8 {[%clk 0:00:09]}  e4 {[%clk 0:00:30]} 38. b4 {[%clk 0:00:06]}  Rc3 {[%clk 0:00:27]} 39. Rd1 {[%clk 0:00:03]}  Rxc2 {[%clk 0:00:26]} 40. Rd4 {[%clk 0:00:02]}  Ne5 {[%clk 0:00:23]} 41. d6 {[%clk 0:00:01]}  Nf3 {[%clk 0:00:21]} 42. Rf8+ {[%clk 0:00:01]}  Kg6 {[%clk 0:00:20]} 43. Rg8+ {[%clk 0:00:01]}  Kh5 {[%clk 0:00:20]} 0-1


[Site "https://www.chess.com"]

[Event "Titled Tuesday Blitz June 14 Late 2022"]
[White "Aldokhin, Ivan"]
[Black "Tymrakiewicz, Rafal"]
[WhiteFideId "24115720"]
[BlackFideId "1108832"]
[WhiteElo "2231"]
[BlackElo "2205"]
[Result "1-0"]
[Round "04"]
[TimeControl "180+1"]
[Date "2022.06.15"]
[WhiteClock "0:00:05"]
[BlackClock "0:00:07"]

1. e4 {[%clk 0:03:00]}  Nf6 {[%clk 0:03:00]} 2. e5 {[%clk 0:03:00]}  Nd5 {[%clk 0:03:00]} 3. Nc3 {[%clk 0:03:01]}  Nxc3 {[%clk 0:02:58]} 4. bxc3 {[%clk 0:03:02]}  d5 {[%clk 0:02:58]} 5. f4 {[%clk 0:03:03]}  c5 {[%clk 0:02:58]} 6. Nf3 {[%clk 0:02:56]}  Nc6 {[%clk 0:02:59]} 7. Rb1 {[%clk 0:02:55]}  Rb8 {[%clk 0:02:56]} 8. Bb5 {[%clk 0:02:51]}  Bg4 {[%clk 0:02:54]} 9. h3 {[%clk 0:02:12]}  Bxf3 {[%clk 0:02:54]} 10. Qxf3 {[%clk 0:02:12]}  e6 {[%clk 0:02:54]} 11. O-O {[%clk 0:02:10]}  g6 {[%clk 0:02:45]} 12. Ba3 {[%clk 0:01:57]}  a6 {[%clk 0:02:28]} 13. Bxc6+ {[%clk 0:01:55]}  bxc6 {[%clk 0:02:28]} 14. c4 {[%clk 0:01:47]}  Be7 {[%clk 0:02:17]} 15. Qe3 {[%clk 0:01:39]}  O-O {[%clk 0:01:31]} 16. Bxc5 {[%clk 0:01:37]}  dxc4 {[%clk 0:00:57]} 17. Rxb8 {[%clk 0:01:34]}  Bxc5 {[%clk 0:00:57]} 18. Qxc5 {[%clk 0:01:35]}  Qxb8 {[%clk 0:00:57]} 19. Qxc4 {[%clk 0:01:32]}  Qb6+ {[%clk 0:00:57]} 20. Kh2 {[%clk 0:01:30]}  Rd8 {[%clk 0:00:58]} 21. Qc3 {[%clk 0:01:20]}  Rd4 {[%clk 0:00:48]} 22. d3 {[%clk 0:00:57]}  c5 {[%clk 0:00:28]} 23. Qb3 {[%clk 0:00:46]}  Rb4 {[%clk 0:00:26]} 24. Qc3 {[%clk 0:00:45]}  Rd4 {[%clk 0:00:25]} 25. Rf3 {[%clk 0:00:41]}  Kg7 {[%clk 0:00:25]} 26. Re3 {[%clk 0:00:37]}  Rxf4 {[%clk 0:00:22]} 27. Qd2 {[%clk 0:00:20]}  Qb4 {[%clk 0:00:20]} 28. c3 {[%clk 0:00:17]}  Qa4 {[%clk 0:00:20]} 29. Re2 {[%clk 0:00:13]}  Rf5 {[%clk 0:00:18]} 30. Qe3 {[%clk 0:00:11]}  Qf4+ {[%clk 0:00:18]} 31. Qxf4 {[%clk 0:00:06]}  Rxf4 {[%clk 0:00:19]} 32. Kg3 {[%clk 0:00:06]}  Ra4 {[%clk 0:00:19]} 33. Rb2 {[%clk 0:00:06]}  Ra3 {[%clk 0:00:18]} 34. Rc2 {[%clk 0:00:03]}  f6 {[%clk 0:00:13]} 35. Kf4 {[%clk 0:00:04]}  g5+ {[%clk 0:00:12]} 36. Ke4 {[%clk 0:00:03]}  f5+ {[%clk 0:00:13]} 37. Ke3 {[%clk 0:00:04]}  h5 {[%clk 0:00:11]} 38. g3 {[%clk 0:00:03]}  Kg6 {[%clk 0:00:10]} 39. h4 {[%clk 0:00:03]}  f4+ {[%clk 0:00:10]} 40. gxf4 {[%clk 0:00:03]}  g4 {[%clk 0:00:08]} 41. Ke4 {[%clk 0:00:04]}  Ra4+ {[%clk 0:00:08]} 42. d4 {[%clk 0:00:04]}  a5 {[%clk 0:00:06]} 43. Rb2 {[%clk 0:00:04]}  cxd4 {[%clk 0:00:05]} 44. cxd4 {[%clk 0:00:04]}  g3 {[%clk 0:00:04]} 45. Rg2 {[%clk 0:00:02]}  Ra3 {[%clk 0:00:05]} 46. f5+ {[%clk 0:00:01]}  exf5+ {[%clk 0:00:05]} 47. Kf4 {[%clk 0:00:02]}  Kf7 {[%clk 0:00:04]} 48. Rxg3 {[%clk 0:00:02]}  Rxa2 {[%clk 0:00:04]} 49. Kxf5 {[%clk 0:00:03]}  Rd2 {[%clk 0:00:04]} 50. Ke4 {[%clk 0:00:02]}  Rh2 {[%clk 0:00:04]} 51. d5 {[%clk 0:00:02]}  Rxh4+ {[%clk 0:00:04]} 52. Kf5 {[%clk 0:00:03]}  Rd4 {[%clk 0:00:05]} 53. d6 {[%clk 0:00:03]}  h4 {[%clk 0:00:05]} 54. Rb3 {[%clk 0:00:03]}  a4 {[%clk 0:00:05]} 55. Rb7+ {[%clk 0:00:03]}  Ke8 {[%clk 0:00:05]} 56. Ke6 {[%clk 0:00:04]}  Kf8 {[%clk 0:00:06]} 57. d7 {[%clk 0:00:04]}  h3 {[%clk 0:00:06]} 58. Rb8+ {[%clk 0:00:04]}  Kg7 {[%clk 0:00:06]} 59. d8=Q {[%clk 0:00:05]}  Rxd8 {[%clk 0:00:06]} 60. Rxd8 {[%clk 0:00:06]}  h2 {[%clk 0:00:06]} 61. Rd1 {[%clk 0:00:06]}  a3 {[%clk 0:00:07]} 62. Kf5 {[%clk 0:00:04]}  a2 {[%clk 0:00:07]} 63. e6 {[%clk 0:00:05]}  Kf8 {[%clk 0:00:07]} 64. Kf6 {[%clk 0:00:05]}  Ke8 {[%clk 0:00:07]} 65. e7 {[%clk 0:00:06]}  h1=Q {[%clk 0:00:07]} 66. Rd8# {[%clk 0:00:05]} 1-0


[Site "https://www.chess.com"]

[Event "Titled Tuesday Blitz June 14 Late 2022"]
[White "Al-Tarboush, Ward"]
[Black "Oro, Luis"]
[WhiteFideId "7601450"]
[BlackFideId "104094"]
[WhiteElo "2249"]
[BlackElo "2377"]
[Result "1-0"]
[Round "04"]
[TimeControl "180+1"]
[Date "2022.06.15"]
[WhiteClock "0:00:29"]
[BlackClock "0:00:10"]

1. e4 {[%clk 0:03:00]}  c5 {[%clk 0:02:59]} 2. Nf3 {[%clk 0:03:01]}  d6 {[%clk 0:02:59]} 3. d4 {[%clk 0:03:01]}  cxd4 {[%clk 0:03:00]} 4. Nxd4 {[%clk 0:03:02]}  Nf6 {[%clk 0:03:01]} 5. Nc3 {[%clk 0:03:02]}  a6 {[%clk 0:03:01]} 6. h3 {[%clk 0:03:02]}  e5 {[%clk 0:03:00]} 7. Nde2 {[%clk 0:03:02]}  h5 {[%clk 0:03:01]} 8. Bg5 {[%clk 0:03:01]}  Be6 {[%clk 0:03:02]} 9. g3 {[%clk 0:03:00]}  Be7 {[%clk 0:03:01]} 10. Bg2 {[%clk 0:03:00]}  b5 {[%clk 0:03:01]} 11. O-O {[%clk 0:02:59]}  Nbd7 {[%clk 0:03:00]} 12. a3 {[%clk 0:02:59]}  Rc8 {[%clk 0:03:00]} 13. Be3 {[%clk 0:02:48]}  Nb6 {[%clk 0:02:56]} 14. b3 {[%clk 0:02:47]}  O-O {[%clk 0:02:49]} 15. f4 {[%clk 0:02:47]}  exf4 {[%clk 0:02:36]} 16. gxf4 {[%clk 0:02:44]}  Rc7 {[%clk 0:02:17]} 17. f5 {[%clk 0:02:44]}  Bd7 {[%clk 0:02:15]} 18. Bxb6 {[%clk 0:02:43]}  Qc8 {[%clk 0:01:52]} 19. Bxc7 {[%clk 0:02:43]}  Qxc7 {[%clk 0:01:52]} 20. Kh1 {[%clk 0:02:43]}  Rc8 {[%clk 0:01:49]} 21. Nd5 {[%clk 0:02:43]}  Nxd5 {[%clk 0:01:48]} 22. exd5 {[%clk 0:02:44]}  Bf6 {[%clk 0:01:47]} 23. c3 {[%clk 0:02:40]}  Re8 {[%clk 0:01:45]} 24. Qd3 {[%clk 0:02:39]}  a5 {[%clk 0:01:39]} 25. Rae1 {[%clk 0:02:37]}  Rc8 {[%clk 0:01:38]} 26. c4 {[%clk 0:02:35]}  a4 {[%clk 0:01:37]} 27. cxb5 {[%clk 0:02:35]}  axb3 {[%clk 0:01:37]} 28. Qxb3 {[%clk 0:02:35]}  Qa5 {[%clk 0:01:34]} 29. Rc1 {[%clk 0:02:35]}  Rb8 {[%clk 0:01:33]} 30. a4 {[%clk 0:02:35]}  Bg5 {[%clk 0:01:31]} 31. Rc6 {[%clk 0:02:34]}  Re8 {[%clk 0:01:30]} 32. Qc4 {[%clk 0:02:27]}  Qd2 {[%clk 0:01:28]} 33. Qc2 {[%clk 0:01:48]}  Qb4 {[%clk 0:01:00]} 34. Rc4 {[%clk 0:01:40]}  Qa3 {[%clk 0:00:57]} 35. Re4 {[%clk 0:01:38]}  Rc8 {[%clk 0:00:57]} 36. Qd1 {[%clk 0:01:33]}  Qa2 {[%clk 0:00:40]} 37. b6 {[%clk 0:01:31]}  Qb2 {[%clk 0:00:39]} 38. a5 {[%clk 0:01:29]}  Qb5 {[%clk 0:00:38]} 39. f6 {[%clk 0:01:00]}  g6 {[%clk 0:00:25]} 40. Re7 {[%clk 0:00:58]}  Bf5 {[%clk 0:00:22]} 41. Nd4 {[%clk 0:00:48]}  Qxa5 {[%clk 0:00:16]} 42. Nxf5 {[%clk 0:00:44]}  Rc1 {[%clk 0:00:15]} 43. b7 {[%clk 0:00:33]}  Qd8 {[%clk 0:00:11]} 44. Qxc1 {[%clk 0:00:28]}  Bxc1 {[%clk 0:00:10]} 45. Rxc1 {[%clk 0:00:29]} 1-0


[Site "https://www.chess.com"]

[Event "Titled Tuesday Blitz June 14 Late 2022"]
[White "Araujo Sanchez, Josue"]
[Black "Yurasova, Daria"]
[WhiteFideId "6416896"]
[BlackFideId "34146919"]
[WhiteElo "2339"]
[BlackElo "2021"]
[Result "0-1"]
[Round "04"]
[TimeControl "180+1"]
[Date "2022.06.15"]
[WhiteClock "0:00:02"]
[BlackClock "0:00:17"]

1. Nf3 {[%clk 0:03:00]}  d5 {[%clk 0:02:59]} 2. b3 {[%clk 0:02:54]}  c5 {[%clk 0:02:58]} 3. Bb2 {[%clk 0:02:53]}  Nc6 {[%clk 0:02:58]} 4. e3 {[%clk 0:02:52]}  Bf5 {[%clk 0:02:54]} 5. Bb5 {[%clk 0:02:26]}  Qb6 {[%clk 0:02:52]} 6. a4 {[%clk 0:02:19]}  a6 {[%clk 0:02:51]} 7. Bxc6+ {[%clk 0:02:16]}  Qxc6 {[%clk 0:02:52]} 8. O-O {[%clk 0:02:17]}  e6 {[%clk 0:02:48]} 9. d3 {[%clk 0:02:15]}  Nf6 {[%clk 0:02:45]} 10. Nbd2 {[%clk 0:02:14]}  Bg6 {[%clk 0:02:44]} 11. Ne5 {[%clk 0:01:28]}  Qc7 {[%clk 0:02:42]} 12. f4 {[%clk 0:01:26]}  Nd7 {[%clk 0:02:17]} 13. e4 {[%clk 0:00:28]}  d4 {[%clk 0:02:07]} 14. Nxd7 {[%clk 0:00:26]}  Qxd7 {[%clk 0:02:07]} 15. Nc4 {[%clk 0:00:26]}  Qc7 {[%clk 0:02:03]} 16. a5 {[%clk 0:00:23]}  f6 {[%clk 0:01:59]} 17. Bc1 {[%clk 0:00:17]}  Bf7 {[%clk 0:01:56]} 18. Qg4 {[%clk 0:00:12]}  O-O-O {[%clk 0:01:51]} 19. f5 {[%clk 0:00:10]}  e5 {[%clk 0:01:51]} 20. Nb6+ {[%clk 0:00:10]}  Kb8 {[%clk 0:01:51]} 21. Bd2 {[%clk 0:00:11]}  Rg8 {[%clk 0:01:37]} 22. Rfb1 {[%clk 0:00:11]}  g6 {[%clk 0:01:34]} 23. fxg6 {[%clk 0:00:11]}  Rxg6 {[%clk 0:01:34]} 24. Qf3 {[%clk 0:00:11]}  Bd6 {[%clk 0:01:23]} 25. b4 {[%clk 0:00:11]}  cxb4 {[%clk 0:01:12]} 26. Bxb4 {[%clk 0:00:11]}  Bxb4 {[%clk 0:01:12]} 27. Rxb4 {[%clk 0:00:11]}  Rdg8 {[%clk 0:01:13]} 28. g3 {[%clk 0:00:11]}  h5 {[%clk 0:01:13]} 29. Rab1 {[%clk 0:00:07]}  h4 {[%clk 0:01:02]} 30. R4b2 {[%clk 0:00:06]}  hxg3 {[%clk 0:01:01]} 31. h3 {[%clk 0:00:06]}  g2 {[%clk 0:00:51]} 32. Na4 {[%clk 0:00:06]}  Rg3 {[%clk 0:00:50]} 33. Rxb7+ {[%clk 0:00:06]}  Qxb7 {[%clk 0:00:47]} 34. Rxb7+ {[%clk 0:00:07]}  Kxb7 {[%clk 0:00:48]} 35. Qxf6 {[%clk 0:00:07]}  R8g7 {[%clk 0:00:33]} 36. Qb6+ {[%clk 0:00:06]}  Kc8 {[%clk 0:00:34]} 37. Nc5 {[%clk 0:00:06]}  Bg8 {[%clk 0:00:20]} 38. Qxa6+ {[%clk 0:00:05]}  Kd8 {[%clk 0:00:20]} 39. Qd6+ {[%clk 0:00:05]}  Ke8 {[%clk 0:00:20]} 40. Qxe5+ {[%clk 0:00:05]}  Kd8 {[%clk 0:00:20]} 41. Qxd4+ {[%clk 0:00:05]}  Kc7 {[%clk 0:00:20]} 42. Qe5+ {[%clk 0:00:05]}  Kc6 {[%clk 0:00:20]} 43. Ne6 {[%clk 0:00:05]}  Bxe6 {[%clk 0:00:19]} 44. Qxe6+ {[%clk 0:00:05]}  Kb5 {[%clk 0:00:20]} 45. Qe5+ {[%clk 0:00:06]}  Ka4 {[%clk 0:00:20]} 46. d4 {[%clk 0:00:06]}  R7g5 {[%clk 0:00:18]} 47. Qe8+ {[%clk 0:00:06]}  Kxa5 {[%clk 0:00:19]} 48. Qe7 {[%clk 0:00:06]}  Rg7 {[%clk 0:00:19]} 49. Qc5+ {[%clk 0:00:06]}  Ka6 {[%clk 0:00:19]} 50. Qc4+ {[%clk 0:00:06]}  Ka5 {[%clk 0:00:19]} 51. Qc5+ {[%clk 0:00:05]}  Ka6 {[%clk 0:00:19]} 52. Qe5 {[%clk 0:00:06]}  R7g5 {[%clk 0:00:18]} 53. Qf6+ {[%clk 0:00:06]}  Kb5 {[%clk 0:00:18]} 54. d5 {[%clk 0:00:07]}  Rg6 {[%clk 0:00:17]} 55. Qb2+ {[%clk 0:00:02]}  Kc5 {[%clk 0:00:17]} 0-1


[Site "https://www.chess.com"]